bitfinex/quotes_SOLUSD_20250216
["timestamp","ask_amount","ask_price","bid_price","bid_amount"]
[1739734263519,0.03,188.46,188.44,5.3067]
[1739734264089,0.03,188.46,188.41,20.51901498]
[1739734264321,0.03,188.46,188.45,15.21151498]
[1739734264997,0.03,188.46,188.45,28.62336351]
[1739734265728,0.03,188.48,188.46,13.41184853]
[1739734265895,0.03,188.48,188.47,15.21151498]
[1739734266095,0.03,188.48,188.47,20.51731498]
[1739734266896,0.03,188.48,188.47,33.92916351]
[1739734268818,0.03,188.48,188.45,35.21151498]
[1739734269019,0.03,188.48,188.43,20.51851498]
[1739734269327,0.03,188.48,188.44,15.21151498]
[1739734269930,0.03,188.48,188.46,5.3061]
[1739734270136,0.03,188.48,188.46,20.51761498]
[1739734270729,0.03,188.48,188.46,5.3061]
[1739734271429,0.03,188.48,188.47,28.62336351]
[1739734272225,0.03,188.48,188.47,15.21151498]
[1739734272439,0.03,188.48,188.47,20.51731498]
[1739734272734,0.03,188.48,188.47,33.92916351]
[1739734273830,0.03,188.48,188.47,5.3058]
[1739734274328,0.03,188.48,188.46,20.51761498]
[1739734274627,0.03,188.48,188.47,15.21151498]
[1739734274805,0.03,188.48,188.46,20.51761498]
[1739734276409,0.03,188.48,188.46,5.3061]
[1739734276624,0.03,188.48,188.47,28.62336351]
[1739734277827,0.03,188.48,188.47,13.41184853]
[1739734278417,0.03,188.48,188.47,18.71764853]
[1739734285847,0.03,188.48,188.47,28.44748169]
[1739734290640,0.0001,188.48,188.47,28.44748169]
[1739734295648,0.0001,188.5,188.49,33.41184853]
[1739734295833,0.0001,188.5,188.49,43.9371982]
[1739734296145,0.0001,188.5,188.49,43.14168169]
[1739734297251,0.03,188.56,188.5,13.41184853]
[1739734297421,0.03,188.56,188.53,9.72983316]
[1739734297626,0.03,188.56,188.51,9.72983316]
[1739734298435,0.03,188.56,188.52,9.72983316]
[1739734298743,0.03,188.56,188.53,9.72983316]
[1739734299048,0.03,188.56,188.54,5.3039]
[1739734299249,0.03,188.56,188.55,13.41184853]
[1739734299546,0.03,188.56,188.54,5.3039]
[1739734302936,0.03,188.56,188.53,18.71594853]
[1739734303541,0.03,188.56,188.53,28.44578169]
[1739734304650,0.03,188.56,188.54,9.72983316]
[1739734305161,0.03,188.56,188.55,5.3036]
[1739734306952,0.03,188.56,188.55,15.03343316]
[1739734307150,0.03,188.56,188.55,28.44528169]
[1739734307351,0.03,188.56,188.53,9.72983316]
[1739734307557,0.03,188.56,188.53,5.3041]
[1739734308554,0.03,188.56,188.54,13.41184853]
[1739734308949,0.03,188.56,188.53,5.3041]
[1739734309165,9.75983316,188.56,188.51,5.3045]
[1739734309460,9.72983316,188.54,188.49,5.305]
[1739734309655,9.72983316,188.54,188.5,13.41184853]
[1739734310152,9.72983316,188.55,188.5,13.41184853]
[1739734310655,9.72983316,188.55,188.49,18.71714853]
[1739734311558,9.75983316,188.56,188.49,28.44698169]
[1739734315248,9.75983316,188.56,188.49,28.50998169]
[1739734316733,0.03,188.56,188.5,9.72983316]
[1739734317242,0.03,188.56,188.52,13.41184853]
[1739734317437,9.75983316,188.56,188.52,13.41184853]
[1739734317648,9.75983316,188.56,188.5,23.14168169]
[1739734317843,9.75983316,188.56,188.5,13.41184853]
[1739734318665,9.75983316,188.56,188.52,13.41184853]
[1739734319060,9.75983316,188.56,188.5,5.3049]
[1739734319061,9.72983316,188.54,188.5,5.3049]
[1739734319266,9.72983316,188.53,188.49,5.3683]
[1739734319467,9.72983316,188.53,188.49,0.063]
[1739734320569,9.72983316,188.52,188.49,0.063]
[1739734323252,9.72983316,188.5,188.49,0.063]
[1739734324974,9.72983316,188.51,188.49,0.063]
[1739734325279,9.72983316,188.52,188.49,0.063]
[1739734325756,9.72983316,188.51,188.49,0.063]
[1739734326471,0.03,188.56,188.5,23.14168169]
[1739734326686,0.03,188.56,188.51,9.72983316]
[1739734326869,9.75983316,188.56,188.5,9.72983316]
[1739734328380,9.75983316,188.56,188.51,5.3047]
[1739734331779,9.75983316,188.56,188.5,13.41184853]
[1739734334484,9.75983316,188.56,188.51,5.3047]
[1739734335479,0.03,188.56,188.53,9.72983316]
[1739734336267,0.03,188.56,188.53,15.03373316]
[1739734336571,0.03,188.56,188.54,13.41184853]
[1739734337267,0.03,188.56,188.52,15.03423316]
[1739734338476,0.03,188.56,188.53,23.14168169]
[1739734339083,0.03,188.56,188.53,13.41184853]
[1739734339586,0.03,188.56,188.53,18.71584853]
[1739734340588,0.03,188.56,188.53,28.44568169]
[1739734341085,0.03,188.56,188.53,5.304]
[1739734341389,0.03,188.56,188.51,15.03433316]
[1739734341557,0.03,188.56,188.51,5.3045]
[1739734342286,0.03,188.56,188.51,18.71634853]
[1739734342488,0.03,188.56,188.51,28.44618169]
[1739734345878,0.03,188.56,188.51,18.71634853]
[1739734346089,9.75983316,188.56,188.5,5.3049]
[1739734348206,0.03,188.56,188.5,15.03473316]
[1739734351508,0.03,188.56,188.5,15.09773316]
[1739734353081,9.75983316,188.56,188.5,5.3679]
[1739734353501,9.72983316,188.55,188.5,0.063]
[1739734353706,9.72983316,188.52,188.5,0.063]
[1739734354079,11.35123316,188.55,188.5,0.063]
[1739734354280,0.03,188.56,188.5,9.79283316]
[1739734354792,9.75983316,188.56,188.5,23.20468169]
[1739734355379,0.03,188.56,188.5,23.20468169]
[1739734355680,0.03,188.56,188.52,5.3044]
[1739734355893,0.03,188.56,188.5,23.20468169]
[1739734355894,9.75983316,188.56,188.51,5.3046]
[1739734357106,0.03,188.56,188.51,15.03443316]
[1739734357402,0.03,188.56,188.53,9.72983316]
[1739734358107,0.03,188.56,188.54,13.41184853]
[1739734358310,0.03,188.56,188.54,23.14168169]
[1739734360113,0.03,188.56,188.55,5.3036]
[1739734361609,0.03,188.56,188.55,28.44528169]
[1739734369229,0.03,188.56,188.55,29.24059962]
[1739734369415,0.03,188.56,188.55,68.15993226]
[1739734369601,0.03,188.56,188.55,74.48623226]
[1739734369918,0.063,188.61,188.6,13.41184853]
[1739734370208,0.063,188.61,188.6,23.14168169]
[1739734371191,0.063,188.61,188.6,121.74388169]
[1739734371412,0.03,188.64,188.63,33.41184853]
[1739734371727,0.03,188.64,188.63,43.14168169]
[1739734373426,0.03,188.64,188.63,48.44298169]
[1739734374000,0.03,188.64,188.63,87.36231433]
[1739734376513,0.03,188.71,188.63,87.36231433]
[1739734376514,0.03,188.71,188.64,13.41184853]
[1739734376699,0.03,188.71,188.64,74.65579438]
[1739734377823,0.03,188.71,188.64,174.70959438]
[1739734378027,0.03,188.71,188.7,23.14168169]
[1739734379825,0.03,188.71,188.7,28.44108169]
[1739734381029,0.05,188.75,188.74,20.0]
[1739734381210,0.05,188.75,188.74,43.14168169]
[1739734382717,0.05,188.75,188.74,48.43988169]
[1739734383110,0.05,188.75,188.74,49.23433674]
[1739734383310,4.8755,188.84,188.75,13.41184853]
[1739734383509,4.8755,188.84,188.78,9.72983316]
[1739734384532,14.60533316,188.84,188.77,9.72983316]
[1739734384932,9.72983316,188.83,188.76,9.72983316]
[1739734385427,9.72983316,188.81,188.75,9.72983316]
[1739734385611,9.72983316,188.82,188.75,9.72983316]
[1739734386127,9.72983316,188.79,188.73,9.72983316]
[1739734386340,1.5598,188.78,188.72,9.72983316]
[1739734387128,1.5598,188.78,188.73,9.72983316]
[1739734387835,6.857,188.78,188.73,9.72983316]
[1739734388529,1.5598,188.78,188.74,9.72983316]
[1739734388914,1.5598,188.78,188.73,9.72983316]
[1739734389124,1.5598,188.78,188.74,9.72983316]
[1739734390310,1.5598,188.78,188.74,15.02803316]
[1739734391004,1.5598,188.78,188.75,9.72983316]
[1739734391522,6.8558,188.82,188.76,9.72983316]
[1739734391714,1.5598,188.82,188.77,9.72983316]
[1739734392118,1.5598,188.82,188.79,9.72983316]
[1739734392310,0.03,188.84,188.81,9.72983316]
[1739734392510,0.03,188.84,188.82,9.72983316]
[1739734392735,0.03,188.84,188.83,9.72983316]
[1739734394448,0.03,188.84,188.82,9.72983316]
[1739734396950,0.03,188.84,188.83,23.14168169]
[1739734397134,0.03,188.84,188.83,9.72983316]
[1739734398340,16.55163316,189.0,188.87,13.41184853]
[1739734398537,16.55163316,189.0,188.93,9.72983316]
[1739734399346,9.72983316,188.99,188.93,9.72983316]
[1739734399743,9.72983316,188.99,188.88,5.2941]
[1739734399919,9.72983316,188.99,188.92,9.72983316]
[1739734400438,5.2915,188.98,188.92,9.72983316]
[1739734401438,15.02133316,188.98,188.91,9.72983316]
[1739734401836,9.72983316,188.96,188.89,9.72983316]
[1739734402043,9.72983316,188.92,188.86,9.72983316]
[1739734402234,9.72983316,188.91,188.84,9.72983316]
[1739734402440,9.72983316,188.89,188.83,9.72983316]
[1739734402744,9.72983316,188.89,188.79,5.2968]
[1739734402942,9.72983316,188.9,188.83,9.72983316]
[1739734403833,9.72983316,188.9,188.82,0.063]
[1739734403834,9.72983316,188.87,188.82,0.063]
[1739734404145,9.72983316,188.85,188.82,0.063]
[1739734404455,9.72983316,188.86,188.82,0.063]
[1739734405430,9.72983316,188.85,188.82,0.063]
[1739734406765,15.14979639,188.86,188.82,0.063]
[1739734407052,6.9225,188.87,188.82,15.21279639]
[1739734407244,16.77759639,188.92,188.85,15.14979639]
[1739734407545,22.07079639,188.92,188.85,15.14979639]
[1739734407847,15.14979639,188.89,188.83,15.14979639]
[1739734409940,15.14979639,188.9,188.84,15.14979639]
[1739734410251,1.6278,188.92,188.86,15.14979639]
[1739734410252,16.77759639,188.92,188.86,15.14979639]
[1739734410429,22.07079639,188.92,188.86,15.14979639]
[1739734411763,15.14979639,188.9,188.84,33.85684492]
[1739734412050,15.14979639,188.91,188.84,33.85684492]
[1739734412427,15.14979639,188.91,188.85,15.14979639]
[1739734413353,22.07079639,188.92,188.86,15.14979639]
[1739734413737,1.6278,188.92,188.87,15.14979639]
[1739734414051,20.44239639,188.95,188.88,15.14979639]
[1739734414267,5.2921,188.96,188.91,15.14979639]
[1739734415251,1.6278,188.97,188.91,15.14979639]
[1739734415451,0.03,188.99,188.94,15.14979639]
[1739734415653,0.03,188.99,188.95,15.14979639]
[1739734415834,5.3213,188.99,188.94,15.14979639]
[1739734416032,5.3213,188.99,188.93,15.14979639]
[1739734416250,20.47109639,188.99,188.93,15.14979639]
[1739734416656,0.03,188.99,188.94,15.14979639]
[1739734417161,0.03,188.99,188.93,15.14979639]
[1739734417629,0.03,188.99,188.94,15.14979639]
[1739734417834,0.03,188.99,188.95,15.14979639]
[1739734418270,0.03,188.99,188.94,15.14979639]
[1739734420543,0.03,188.99,188.94,15.14979639]
[1739734421765,0.03,188.99,188.94,20.44239639]
[1739734425162,0.03,188.99,188.94,5.2926]
[1739734425373,0.03,188.99,188.94,20.44239639]
[1739734427050,0.03,188.99,188.94,5.2926]
[1739734427967,0.03,188.99,188.96,15.14979639]
[1739734428361,0.03,188.99,188.95,15.14979639]
[1739734430374,0.03,188.99,188.96,5.2921]
[1739734435652,0.03,188.99,188.98,9.68008558]
[1739734435853,0.03,188.99,188.98,23.09193411]
[1739734436650,0.03,188.99,188.98,28.38343411]
[1739734441561,0.0001,188.99,188.98,28.38343411]
[1739734442767,1.03,189.18,189.02,27.8698]
[1739734442977,1.03,189.18,189.11,9.68008558]
[1739734443176,9.68008558,189.17,189.1,9.68008558]
[1739734443482,9.68008558,189.17,189.09,9.68008558]
[1739734443678,14.96628558,189.17,189.09,9.68008558]
[1739734444080,9.68008558,189.16,189.09,14.96838558]
[1739734444663,15.1014805,189.16,189.09,20.3897805]
[1739734444978,15.1014805,189.15,189.08,15.1014805]
[1739734446377,15.1014805,189.13,189.06,15.1014805]
[1739734446582,15.1014805,189.12,189.05,20.3907805]
[1739734447080,15.1014805,189.09,189.02,21.4007805]
[1739734447266,15.1014805,189.09,189.03,5.2901]
[1739734447666,15.1014805,189.09,189.02,21.4007805]
[1739734447869,1.5924,189.12,188.98,1.5705]
[1739734447870,15.1014805,189.06,188.99,15.1014805]
[1739734448103,15.1014805,189.05,188.98,15.1014805]
[1739734448403,15.1014805,189.03,188.97,26.6922805]
[1739734448690,15.1014805,189.03,188.97,21.4007805]
[1739734448891,15.1014805,189.03,188.96,20.3935805]
[1739734451087,15.1014805,189.01,188.95,15.1014805]
[1739734451290,15.1014805,188.99,188.93,15.1014805]
[1739734451484,15.1014805,188.99,188.93,20.3943805]
[1739734451679,16.7169805,189.03,188.97,15.1014805]
[1739734451879,1.6155,189.03,188.98,15.1014805]
[1739734452370,1.6155,189.03,188.98,0.063]
[1739734452977,15.1014805,189.0,188.98,0.063]
[1739734453181,15.1014805,188.99,188.98,0.063]
[1739734453581,15.1014805,189.0,188.98,0.063]
[1739734455475,15.1014805,189.01,188.98,0.063]
[1739734456496,15.1014805,189.0,188.98,0.063]
[1739734458100,15.1014805,188.99,188.98,0.063]
[1739734458403,15.1014805,189.0,188.98,0.063]
[1739734460276,15.1014805,188.99,188.98,0.063]
[1739734461092,16.1014805,188.99,188.98,0.063]
[1739734461290,21.3926805,188.99,188.98,0.063]
[1739734462388,20.3926805,188.99,188.98,0.063]
[1739734462699,21.3926805,188.99,188.98,0.063]
[1739734462898,20.3926805,188.99,188.98,0.063]
[1739734464293,18.91224812,188.99,188.98,0.063]
[1739734464691,19.91224812,188.99,188.98,0.063]
[1739734467000,13.62104812,188.89,188.84,0.063]
[1739734467316,13.62104812,188.88,188.84,5.3584]
[1739734467490,13.62104812,188.89,188.84,5.3584]
[1739734470399,13.62104812,188.91,188.85,13.41184853]
[1739734470712,13.62104812,188.93,188.86,13.62104812]
[1739734471285,13.62104812,188.92,188.85,27.03289665]
[1739734471499,13.62104812,188.92,188.85,13.62104812]
[1739734472110,13.62104812,188.91,188.85,13.62104812]
[1739734472515,13.62104812,188.92,188.86,5.2949]
[1739734474209,13.62104812,188.94,188.88,13.62104812]
[1739734474512,13.62104812,188.95,188.88,13.62104812]
[1739734474715,13.62104812,188.95,188.89,13.62104812]
[1739734475410,13.62104812,188.95,188.9,5.2938]
[1739734475613,13.62104812,188.99,188.92,13.62104812]
[1739734475915,13.62104812,188.99,188.93,13.62104812]
[1739734476099,5.2908,189.01,188.94,13.62104812]
[1739734476100,13.62104812,189.01,188.94,13.62104812]
[1739734477211,13.62104812,189.0,188.93,13.62104812]
[1739734478018,13.62104812,189.0,188.94,5.2926]
[1739734478900,13.62104812,189.02,188.95,27.03289665]
[1739734479218,13.62104812,189.02,188.96,13.62104812]
[1739734480214,13.65104812,189.03,188.96,13.62104812]
[1739734480523,13.62104812,189.02,188.97,5.2918]
[1739734481319,13.65104812,189.03,188.97,5.2918]
[1739734482691,0.03,189.03,188.98,27.03289665]
[1739734482892,0.03,189.03,189.0,13.62104812]
[1739734484018,0.03,189.03,189.01,5.2907]
[1739734484203,0.03,189.03,189.01,18.91174812]
[1739734485225,0.03,189.03,189.02,18.91144812]
[1739734490718,0.03,189.03,189.02,32.32329665]
[1739734494136,0.03,189.03,189.02,5.2904]
[1739734496538,0.03,189.03,189.02,13.62104812]
[1739734496925,0.03,189.03,189.01,18.91174812]
[1739734497111,0.03,189.03,189.01,5.2907]
[1739734498338,0.03,189.03,189.0,13.62104812]
[1739734498525,0.03,189.03,189.0,5.2909]
[1739734500423,13.62104812,189.02,188.98,0.063]
[1739734502850,13.62104812,189.01,188.98,0.063]
[1739734503138,13.62104812,189.0,188.98,0.063]
[1739734507352,13.62104812,189.01,188.98,0.063]
[1739734507641,13.65104812,189.03,188.98,0.063]
[1739734508230,13.62104812,189.0,188.98,0.063]
[1739734508631,8.71289377,188.99,188.98,0.063]
[1739734512942,8.71289377,189.0,188.98,0.063]
[1739734513626,8.71289377,188.99,188.98,0.063]
[1739734513831,10.27629377,188.99,188.98,0.063]
[1739734517651,8.71289377,188.99,188.98,0.063]
[1739734520522,14.00409377,188.99,188.98,0.063]
[1739734521261,14.00409377,188.99,188.85,6.1824]
[1739734521262,20.0,188.96,188.85,6.1824]
[1739734521457,20.0,188.96,188.85,11.4776]
[1739734521458,8.71289377,188.89,188.85,11.4776]
[1739734521764,8.71289377,188.88,188.85,6.1824]
[1739734522439,8.71289377,188.9,188.85,11.4775]
[1739734522640,8.71289377,188.89,188.85,6.1824]
[1739734523733,8.71289377,188.89,188.85,11.4776]
[1739734524231,8.71289377,188.89,188.84,0.063]
[1739734524755,8.71289377,188.88,188.84,0.063]
[1739734525056,8.71289377,188.87,188.84,0.063]
[1739734527960,8.71289377,188.89,188.84,0.063]
[1739734529468,8.71289377,188.87,188.84,0.063]
[1739734529759,8.71289377,188.85,188.84,0.063]
[1739734530964,8.71289377,188.86,188.84,0.063]
[1739734531536,8.71289377,188.87,188.84,0.063]
[1739734531742,8.71289377,188.89,188.84,0.063]
[1739734531939,8.71289377,188.87,188.84,0.063]
[1739734532143,8.71289377,188.85,188.84,0.063]
[1739734534270,14.00809377,188.85,188.84,0.063]
[1739734534647,8.71289377,188.93,188.84,8.77589377]
[1739734534970,8.71289377,188.93,188.84,0.063]
[1739734535146,6.8069,188.95,188.84,0.063]
[1739734535347,8.71289377,188.91,188.84,0.063]
[1739734535754,8.71289377,188.91,188.84,13.47484853]
[1739734535954,8.71289377,188.89,188.84,0.063]
[1739734536246,8.71289377,188.89,188.84,5.3584]
[1739734536659,8.71289377,188.9,188.84,5.3584]
[1739734538261,8.71289377,188.89,188.84,0.063]
[1739734538455,8.71289377,188.9,188.84,0.063]
[1739734538972,1.5145,188.95,188.84,22.1877423]
[1739734538973,8.71289377,188.91,188.84,22.1877423]
[1739734540174,8.71289377,188.91,188.85,5.2952]
[1739734542859,8.71289377,188.92,188.85,14.00809377]
[1739734544175,8.71289377,188.91,188.85,5.2952]
[1739734544476,8.71289377,188.91,188.85,14.00809377]
[1739734544672,8.71289377,188.92,188.85,14.00809377]
[1739734546370,8.71289377,188.91,188.85,14.00809377]
[1739734547255,8.71289377,188.86,188.84,0.063]
[1739734547570,8.71289377,188.85,188.84,0.063]
[1739734548759,14.00809377,188.85,188.84,0.063]
[1739734550767,13.63868151,188.86,188.84,0.063]
[1739734551651,13.63868151,188.85,188.84,0.063]
[1739734551854,13.63868151,188.86,188.84,0.063]
[1739734552257,13.63868151,188.85,188.84,0.063]
[1739734561164,18.93388151,188.85,188.84,0.063]
[1739734562700,13.63868151,188.85,188.84,0.063]
[1739734563669,18.93388151,188.85,188.84,0.063]
[1739734564410,13.63868151,188.85,188.84,0.063]
[1739734567392,18.93388151,188.85,188.84,0.063]
[1739734567574,13.63868151,188.85,188.84,0.063]
[1739734570394,13.63868151,188.87,188.84,0.063]
[1739734570713,8.72298332,188.89,188.84,0.063]
[1739734571403,8.72298332,188.88,188.84,0.063]
[1739734571992,1.6124,188.93,188.84,0.063]
[1739734571993,8.72298332,188.9,188.84,0.063]
[1739734572593,13.62820008,188.9,188.84,0.063]
[1739734573703,13.62820008,188.9,188.85,5.2952]
[1739734573887,13.62820008,188.91,188.85,18.92340008]
[1739734574285,13.62820008,188.91,188.85,5.2952]
[1739734577614,13.62820008,188.9,188.85,5.2952]
[1739734578714,13.62820008,188.92,188.85,18.92340008]
[1739734585326,13.62820008,188.95,188.88,13.62820008]
[1739734585506,13.62820008,188.95,188.88,20.02980008]
[1739734586126,13.62820008,188.93,188.88,6.4016]
[1739734586626,13.62820008,188.92,188.88,6.4016]
[1739734587289,13.62820008,188.9,188.84,13.69120008]
[1739734587489,13.62820008,188.89,188.84,0.063]
[1739734587994,13.62820008,188.91,188.84,27.10304861]
[1739734588899,13.62820008,188.91,188.84,32.39844861]
[1739734590322,13.62820008,188.93,188.86,13.62820008]
[1739734590693,13.62820008,188.92,188.86,13.62820008]
[1739734591021,13.62820008,188.92,188.86,18.70644853]
[1739734591416,13.62820008,188.9,188.86,5.2946]
[1739734591605,13.62820008,188.9,188.84,18.98640008]
[1739734591921,13.62820008,188.89,188.84,0.063]
[1739734592095,13.62820008,188.87,188.84,0.063]
[1739734592596,8.72465188,188.87,188.84,0.063]
[1739734592802,8.72465188,188.88,188.84,0.063]
[1739734593011,8.72465188,188.87,188.84,0.063]
[1739734593299,8.72465188,188.88,188.84,0.063]
[1739734594000,8.72465188,188.89,188.84,0.063]
[1739734594318,8.72465188,188.88,188.84,0.063]
[1739734597316,8.72465188,188.87,188.84,0.063]
[1739734598223,8.72465188,188.85,188.84,0.063]
[1739734600024,10.36595188,188.85,188.84,0.063]
[1739734600429,15.66115188,188.85,188.84,0.063]
[1739734602722,16.66115188,188.85,188.84,0.063]
[1739734603025,20.0,188.83,188.82,0.063]
[1739734603216,63.6232594,188.83,188.82,0.063]
[1739734604113,28.72465188,188.83,188.82,0.063]
[1739734604516,34.02035188,188.83,188.82,0.063]
[1739734607336,68.9189594,188.83,188.82,0.063]
[1739734610331,34.02035188,188.83,188.82,0.063]
[1739734611229,68.9189594,188.83,188.82,0.063]
[1739734612226,34.02035188,188.83,188.82,0.063]
[1739734614724,35.02035188,188.83,188.82,0.063]
[1739734616961,34.02035188,188.83,188.82,0.063]
[1739734621422,8.72465188,188.83,188.82,0.063]
[1739734622831,14.02035188,188.83,188.82,0.063]
[1739734623039,8.72465188,188.83,188.82,0.063]
[1739734624140,87.6256,188.84,188.82,0.063]
[1739734624141,91.05465188,188.84,188.82,0.063]
[1739734624330,8.72465188,188.83,188.82,0.063]
[1739734626963,96.35015188,188.84,188.82,0.063]
[1739734627438,0.03,188.84,188.82,0.063]
[1739734629668,0.03,188.84,188.82,5.359]
[1739734630534,0.03,188.84,188.82,14.08365188]
[1739734630842,0.03,188.84,188.83,8.72465188]
[1739734632058,0.03,188.84,188.83,27.43220041]
[1739734635532,82.3,188.93,188.84,7.6103]
[1739734635735,8.72465188,188.95,188.88,8.72465188]
[1739734636651,8.72465188,188.95,188.89,5.294]
[1739734637362,8.72465188,188.92,188.85,8.72465188]
[1739734637672,8.72465188,188.9,188.84,12.9057]
[1739734637970,8.72465188,188.88,188.84,6.0427]
[1739734638135,8.72465188,188.86,188.84,6.0427]
[1739734638341,8.72465188,188.86,188.82,0.063]
[1739734639492,8.72465188,188.84,188.82,0.063]
[1739734639762,8.72465188,188.83,188.82,0.063]
[1739734641073,14.02035188,188.83,188.82,0.063]
[1739734641951,8.72465188,188.83,188.82,0.063]
[1739734642273,8.72465188,188.85,188.82,0.063]
[1739734643581,91.02465188,188.89,188.82,8.78765188]
[1739734643969,8.72465188,188.88,188.82,0.063]
[1739734644169,8.72465188,188.86,188.82,0.063]
[1739734644366,8.72465188,188.85,188.82,0.063]
[1739734644783,8.72465188,188.84,188.82,0.063]
[1739734644989,8.72465188,188.83,188.82,0.063]
[1739734647792,8.72465188,188.84,188.82,0.063]
[1739734648090,0.03,188.85,188.82,0.063]
[1739734648290,8.75465188,188.85,188.82,0.063]
[1739734648490,91.05465188,188.85,188.82,0.063]
[1739734648996,8.72465188,188.84,188.82,0.063]
[1739734650489,8.72465188,188.83,188.82,0.063]
[1739734652792,14.02035188,188.83,188.82,0.063]
[1739734661373,14.02015188,188.84,188.82,0.063]
[1739734661888,8.72465188,188.83,188.82,0.063]
[1739734663174,14.02035188,188.83,188.82,0.063]
[1739734674690,28.72465188,188.8,188.79,0.063]
[1739734676195,48.43310041,188.8,188.79,0.0001]
[1739734676496,14.41184853,188.79,188.71,6.2557]
[1739734676696,8.72465188,188.74,188.71,6.2557]
[1739734676909,8.72465188,188.75,188.71,6.2557]
[1739734679195,8.72465188,188.74,188.71,6.2557]
[1739734681013,8.72465188,188.75,188.71,6.2557]
[1739734681214,82.3,188.73,188.71,6.2557]
[1739734681411,91.02465188,188.73,188.71,6.2557]
[1739734681936,91.02465188,188.73,188.7,0.063]
[1739734682601,96.32325188,188.73,188.7,0.063]
[1739734683526,91.02465188,188.73,188.7,0.063]
[1739734683737,82.3,188.73,188.7,0.063]
[1739734684227,82.3,188.73,188.71,0.063]
[1739734685216,8.72465188,188.78,188.71,8.78765188]
[1739734685426,82.3,188.77,188.73,8.72465188]
[1739734685633,82.3,188.77,188.72,8.72465188]
[1739734685805,82.3,188.77,188.73,5.2985]
[1739734688431,82.3,188.77,188.76,8.72465188]
[1739734688739,82.3,188.82,188.76,8.72465188]
[1739734688904,82.3,188.81,188.77,8.72465188]
[1739734689739,82.3,188.81,188.75,1.5219]
[1739734689740,82.3,188.81,188.76,8.72465188]
[1739734690418,82.3,188.81,188.76,14.02235188]
[1739734692841,82.3,188.81,188.76,8.72465188]
[1739734693333,82.3,188.81,188.76,14.02235188]
[1739734696337,82.3,188.81,188.76,8.72465188]
[1739734696543,82.33,188.81,188.76,8.72465188]
[1739734698042,82.33,188.81,188.76,14.02215188]
[1739734698647,87.6263,188.81,188.76,8.72465188]
[1739734699339,82.33,188.81,188.76,14.02235188]
[1739734702052,82.33,188.81,188.77,8.72465188]
[1739734704223,82.33,188.81,188.77,14.02205188]
[1739734705131,0.03,188.81,188.78,8.72465188]
[1739734705328,0.03,188.81,188.79,8.72465188]
[1739734706217,0.03,188.81,188.78,8.72465188]
[1739734709430,0.03,188.81,188.77,8.72465188]
[1739734710749,0.03,188.81,188.76,0.063]
[1739734711131,8.75465188,188.81,188.76,0.063]
[1739734712128,5.2966,188.8,188.76,0.063]
[1739734712727,5.3263,188.81,188.76,8.78765188]
[1739734713035,0.03,188.81,188.76,8.78765188]
[1739734714057,0.03,188.81,188.78,8.72465188]
[1739734715250,0.03,188.81,188.78,14.02165188]
[1739734716951,0.03,188.81,188.79,8.72465188]
[1739734717153,0.03,188.81,188.78,8.72465188]
[1739734718444,0.03,188.81,188.8,8.72465188]
[1739734719327,0.03,188.81,188.8,27.43310041]
[1739734719547,0.03,188.81,188.8,33.44340041]
[1739734729574,0.03,188.81,188.78,5.2971]
[1739734729742,0.03,188.81,188.76,14.08515188]
[1739734733058,0.03,188.81,188.76,0.063]
[1739734733059,28.72465188,188.77,188.76,0.063]
[1739734735647,34.02205188,188.77,188.76,0.063]
[1739734737086,1.0,188.76,188.71,0.063]
[1739734737251,8.72465188,188.72,188.71,0.063]
[1739734738569,14.02345188,188.72,188.71,0.063]
[1739734739753,8.72465188,188.72,188.71,0.063]
[1739734741352,14.02295188,188.74,188.71,0.063]
[1739734742169,8.72465188,188.74,188.71,0.063]
[1739734744484,8.72465188,188.75,188.71,0.063]
[1739734744993,82.3,188.74,188.71,0.063]